lending/lending_fUSD_20241120
["ID","MTS","AMOUNT","RATE_DAILY","PERIOD"]
[342790916,1732140808608,-2674.97,0.00058082,120]
[342790917,1732140808617,-1095.19,0.00058082,120]
[342790918,1732140808626,-3162.29,0.00058082,120]
[342790919,1732140808636,-500.0,0.00058082,120]
[342790920,1732140808646,-5192.12,0.00058082,120]
[342790921,1732140808656,-6968.45,0.00058082,60]
[342790922,1732140808666,-788.84,0.00058082,120]
[342790923,1732140808676,-500.0,0.00058082,120]
[342790924,1732140808685,-4873.91,0.00058082,120]
[342790925,1732140808695,-565.84,0.00058082,120]
[342790926,1732140808704,-500.0,0.00058082,120]
[342790927,1732140808714,-736.59,0.00058082,120]
[342790928,1732140808724,-778.41,0.00058082,120]
[342790929,1732140808734,-2123.81,0.00058082,120]
[342790930,1732140808743,-1135.51,0.00058082,120]
[342790931,1732140808752,-801.02,0.00058082,120]
[342790932,1732140808762,-1176.11,0.00058082,120]
[342790933,1732140808771,-500.0,0.00058082,120]
[342790934,1732140808780,-456.61128004,0.00058082,120]
[342790935,1732140808789,-6444.84,0.00058082,120]
[342790936,1732140808799,-840.5,0.00058082,120]
[342790937,1732140808808,-1149.75,0.00058082,120]
[342790938,1732140808817,-538.19,0.00058082,120]
[342790939,1732140808827,-1918.75,0.00058082,120]
[342790940,1732140808836,-527.39,0.00058082,120]
[342790941,1732140808845,-846.33,0.00058082,120]
[342790942,1732140808855,-1437.44,0.00058082,120]
[342790943,1732140808864,-655.97,0.00058082,120]
[342790944,1732140808874,-613.35,0.00058082,120]
[342790945,1732140808883,-1217.61,0.00058082,120]
[342790946,1732140808892,-7358.45,0.00058082,120]
[342790947,1732140808902,-1149.18,0.00058082,120]
[342790948,1732140808911,-500.0,0.00058082,120]
[342790949,1732140808920,-924.66,0.00058082,120]
[342790950,1732140808929,-1147.11,0.00058082,120]
[342790951,1732140808938,-1368.4,0.00058082,120]
[342790952,1732140808947,-1974.94,0.00058082,120]
[342790953,1732140808956,-500.0,0.00058082,120]
[342790954,1732140808965,-13034.59,0.00058082,120]
[342790955,1732140808974,-17457.35,0.00058082,120]
[342790956,1732140808983,-2237.64,0.00058082,120]
[342790957,1732140808997,-2737.65,0.00058082,120]
[342790958,1732140809006,-551.05,0.00058082,120]
[342790959,1732140809015,-2479.1,0.00058082,120]
[342790960,1732140809024,-500.0,0.00058082,120]
[342790961,1732140809034,-500.0,0.00058082,120]
[342790962,1732140809043,-3077.78,0.00058082,120]
[342790963,1732140809053,-4393.1,0.00058082,120]
[342790964,1732140809062,-656.88,0.00058082,120]
[342790965,1732140809072,-1550.26,0.00058082,120]
[342790966,1732140809081,-500.0,0.00058082,120]
[342790967,1732140809091,-725.78,0.00058082,120]
[342790968,1732140809101,-5411.3,0.00058082,120]
[342790969,1732140809111,-996.23,0.00058082,120]
[342790970,1732140809120,-1967.61,0.00058082,120]
[342790971,1732140809129,-535.35,0.00058082,120]
[342790972,1732140809138,-500.0,0.00058082,120]
[342790973,1732140809147,-500.0,0.00058082,120]
[342790974,1732140809157,-559.06,0.00058082,120]
[342790975,1732140809166,-1127.77,0.00058082,120]
[342790976,1732140809180,-7043.87,0.00058082,120]
[342790977,1732140809189,-580.25,0.00058082,120]
[342790978,1732140809199,-570.31,0.00058082,120]
[342790979,1732140809210,-500.0,0.00058082,120]
[342790980,1732140809219,-8863.78,0.00058082,120]
[342790981,1732140809229,-604.62,0.00058082,120]
[342790982,1732140809242,-2040.5,0.00058082,120]
[342790983,1732140809251,-1500.0,0.00058082,120]
[342790984,1732140809262,-2305.42,0.00058082,120]
[342790985,1732140809271,-762.69,0.00058082,120]
[342790986,1732140809281,-713.08,0.00058082,120]
[342790987,1732140809290,-1604.28,0.00058082,120]
[342790988,1732140809300,-1101.03,0.00058082,120]
[342790989,1732140809310,-500.0,0.00058082,120]
[342790990,1732140809320,-500.0,0.00058082,120]
[342790991,1732140809330,-500.0,0.00058082,120]
[342790992,1732140809340,-1320.75,0.00058082,120]
[342790993,1732140809350,-1100.57,0.00058082,120]
[342790994,1732140809361,-500.0,0.00058082,120]
[342790995,1732140809371,-500.0,0.00058082,120]
[342790996,1732140809380,-500.0,0.00058082,120]
[342790997,1732140809390,-5594.76,0.00058082,120]
[342790998,1732140809399,-500.0,0.00058082,120]
[342790999,1732140809408,-918.38,0.00058082,120]
[342791000,1732140809418,-3670.68,0.00058082,120]
[342791001,1732140809428,-500.0,0.00058082,120]
[342791002,1732140809439,-561.2,0.00058082,120]
[342791003,1732140809448,-2335.45865019,0.00058294,120]
[342791004,1732140809458,-6123.0,0.00058353,117]
[342791005,1732140809467,-500.0,0.00058356,7]
[342791006,1732140809476,-597.23,0.00058356,120]
[342791007,1732140809486,-500.0,0.00058356,120]
[342791008,1732140809498,-500.0,0.00058356,120]
[342791009,1732140809507,-155.055593,0.00058356,120]
[342791010,1732140809517,-260.413462,0.00058356,120]
[342791011,1732140809526,-210.928221,0.00058356,120]
[342791012,1732140809535,-789.82,0.00058356,120]
[342791013,1732140809545,-907.52,0.00058356,120]
[342791014,1732140809554,-676.32,0.00058356,120]
[342791015,1732140809563,-690.77,0.00058356,120]
[342791016,1732140809572,-500.0,0.00058356,120]
[342791017,1732140809583,-500.0,0.00058356,120]
[342791018,1732140809593,-500.0,0.00058356,120]
[342791019,1732140809603,-500.0,0.00058356,120]
[342791020,1732140809613,-500.0,0.00058356,120]
[342791021,1732140809623,-500.0,0.00058356,120]
[342791022,1732140809632,-802.91,0.00058356,120]
[342791023,1732140809642,-1078.99,0.00058356,120]
[342791024,1732140809651,-1196.86,0.00058356,120]
[342791025,1732140809661,-1553.66,0.00058356,120]
[342791026,1732140809670,-500.0,0.00058356,120]
[342791027,1732140809679,-500.0,0.00058356,120]
[342791028,1732140809689,-1468.02,0.00058356,120]
[342791029,1732140809699,-500.0,0.00058356,120]
[342791030,1732140809710,-1204.33,0.00058356,120]
[342791031,1732140809719,-500.0,0.00058356,120]
[342791032,1732140809728,-689.54,0.00058356,120]
[342791033,1732140809740,-500.0,0.00058356,120]
[342791034,1732140809748,-500.0,0.00058356,120]
[342791035,1732140809758,-500.0,0.00058356,120]
[342791036,1732140809768,-3362.7,0.00058356,120]
[342791037,1732140809778,-500.0,0.00058356,120]
[342791038,1732140809788,-500.0,0.00058356,120]
[342791039,1732140809797,-2907.27,0.00058356,120]
[342791040,1732140809806,-1034.08,0.00058356,120]
[342791041,1732140809815,-500.0,0.00058356,120]
[342791042,1732140809825,-500.0,0.00058356,120]
[342791043,1732140809836,-577.45,0.00058356,120]
[342791044,1732140809845,-691.51,0.00058356,120]
[342791045,1732140809854,-1141.42,0.00058356,120]
[342791046,1732140809866,-1067.52,0.00058356,120]
[342791047,1732140809876,-438.69605499,0.00058356,120]
[342791048,1732140809885,-1047.06,0.00058356,120]
[342791049,1732140809895,-500.0,0.00058356,120]
[342791050,1732140809904,-154.82497125,0.00058356,2]
[342791051,1732140809914,-1588.94,0.00058356,120]
[342791052,1732140809924,-500.0,0.00058356,120]
[342791053,1732140809933,-500.0,0.00058356,14]
[342791054,1732140809942,-826.46,0.00058356,120]
[342791055,1732140809952,-883.47,0.00058356,120]
[342791056,1732140809962,-358.30670799,0.00058356,120]
[342791057,1732140809972,-500.0,0.00058356,120]
[342791058,1732140809982,-1125.72,0.00058356,120]
[342791059,1732140809994,-500.0,0.00058356,120]
[342791060,1732140810005,-1116.01,0.00058356,120]
[342791061,1732140810016,-1198.91,0.00058356,120]
[342791062,1732140810025,-500.0,0.00058356,120]
[342791063,1732140810034,-1410.51,0.00058356,120]
[342791064,1732140810044,-500.0,0.00058356,120]
[342791065,1732140810053,-508.72,0.00058356,120]
[342791066,1732140810062,-500.0,0.00058356,120]
[342791067,1732140810071,-501.02,0.00058356,120]
[342791068,1732140810081,-500.0,0.00058356,120]
[342791069,1732140810090,-854.5,0.00058356,120]
[342791070,1732140810100,-500.0,0.00058356,120]
[342791071,1732140810110,-923.86,0.00058356,120]
[342791072,1732140810120,-500.0,0.00058356,120]
[342791073,1732140810129,-500.0,0.00058356,60]
[342791074,1732140810138,-1843.46,0.00058356,120]
[342791075,1732140810147,-810.6,0.00058356,120]
[342791076,1732140810156,-909.22,0.00058356,120]
[342791077,1732140810166,-500.0,0.00058356,120]
[342791078,1732140810180,-500.0,0.00058356,120]
[342791079,1732140810189,-500.0,0.00058356,120]
[342791080,1732140810198,-533.52,0.00058356,120]
[342791081,1732140810209,-2415.23,0.00058356,120]
[342791082,1732140810218,-972.8,0.00058356,120]
[342791083,1732140810227,-1624.46,0.00058356,120]
[342791084,1732140810236,-215.72071392,0.00058356,120]
[342791085,1732140810249,-500.0,0.00058356,120]
[342791086,1732140810258,-530.46,0.00058356,120]
[342791087,1732140810270,-730.89,0.00058356,120]
[342791088,1732140810280,-615.39,0.00058356,120]
[342791089,1732140810289,-500.0,0.00058356,120]
[342791090,1732140810300,-500.0,0.00058356,120]
[342791091,1732140810309,-567.94106312,0.00058356,120]
[342791092,1732140810319,-515.66,0.00058356,120]
[342791093,1732140810328,-560.23301469,0.00058356,120]
[342791094,1732140810337,-783.6,0.00058356,120]
[342791095,1732140810347,-713.08,0.00058356,120]
[342791096,1732140810356,-1852.69,0.00058356,120]
[342791097,1732140810365,-524.36,0.00058356,120]
[342791098,1732140810375,-500.0,0.00058356,120]
[342791099,1732140810385,-500.0,0.00058356,120]
[342791100,1732140810394,-508.19314332,0.00058356,120]
[342791101,1732140810404,-729.05,0.00058356,120]
[342791102,1732140810413,-500.0,0.00058356,120]
[342791103,1732140810423,-500.0,0.00058356,120]
[342791104,1732140810431,-2435.5,0.00058356,120]
[342791105,1732140810440,-521.8,0.00058356,120]
[342791106,1732140810449,-642.48,0.00058356,120]
[342791107,1732140810458,-849.85,0.00058356,120]
[342791108,1732140810466,-627.45,0.00058356,120]
[342791109,1732140810476,-858.26,0.00058356,120]
[342791110,1732140810486,-595.03254174,0.00058356,120]
[342791111,1732140810498,-503.51,0.00058356,120]
[342791112,1732140810508,-742.62,0.00058356,120]
[342791113,1732140810518,-2800.08,0.00058356,120]
[342791114,1732140810528,-500.0,0.00058356,120]
[342791115,1732140810538,-500.0,0.00058356,120]
[342791116,1732140810548,-563.45,0.00058356,120]
[342791117,1732140810558,-500.0,0.00058356,120]
[342791118,1732140810567,-1104.08,0.00058356,120]
[342791119,1732140810577,-500.0,0.00058356,120]
[342791120,1732140810587,-500.0,0.00058356,120]
[342791121,1732140810597,-1222.85,0.00058356,120]
[342791122,1732140810607,-1021.61,0.00058356,120]
[342791123,1732140810616,-578.33,0.00058356,120]
[342791124,1732140810626,-1661.17,0.00058356,120]
[342791125,1732140810635,-800.14,0.00058356,120]
[342791126,1732140810644,-500.0,0.00058356,120]
[342791127,1732140810654,-1090.19,0.00058356,120]
[342791128,1732140810663,-500.0,0.00058356,120]
[342791129,1732140810673,-1054.3,0.00058356,120]
[342791130,1732140810682,-1209.25,0.00058356,120]
[342791131,1732140810692,-588.41684301,0.00058356,120]
[342791132,1732140810701,-1127.18,0.00058356,120]
[342791133,1732140810710,-500.0,0.00058356,120]
[342791134,1732140810720,-500.0,0.00058356,120]
[342791135,1732140810729,-1267.34,0.00058356,120]
[342791136,1732140810738,-2432.38,0.00058356,7]
[342791137,1732140810750,-1560.72,0.00058356,120]
[342791138,1732140810760,-655.09,0.00058356,120]
[342791139,1732140810768,-1047.78,0.00058356,120]
[342791140,1732140810777,-500.0,0.00058356,120]
[342791141,1732140810786,-500.0,0.00058356,120]
[342791142,1732140810796,-500.0,0.00058356,120]
[342791143,1732140810806,-1376.36,0.00058356,120]
[342791144,1732140810816,-758.47,0.00058356,120]
[342791145,1732140810825,-1218.68,0.00058356,120]
[342791146,1732140810835,-1031.21,0.00058356,120]
[342791147,1732140810844,-746.97,0.00058356,120]
[342791148,1732140810853,-500.0,0.00058356,120]
[342791149,1732140810863,-1956.13,0.00058356,120]
[342791150,1732140810872,-1530.02,0.00058356,120]
[342791151,1732140810882,-859.85,0.00058356,120]
[342791152,1732140810891,-626.84,0.00058356,120]
[342791153,1732140810901,-925.63,0.00058356,120]
[342791154,1732140810910,-1089.2,0.00058356,120]
[342791155,1732140810919,-500.0,0.00058356,120]
[342791156,1732140810929,-746.22,0.00058356,120]
[342791157,1732140810939,-1753.04,0.00058356,120]
[342791158,1732140810948,-1615.28,0.00058356,120]
[342791159,1732140810958,-750.0,0.00058356,120]
[342791160,1732140810967,-509.22073606,0.00058356,120]
[342791161,1732140810977,-2808.16,0.00058356,120]
[342791162,1732140810986,-628.55,0.00058356,120]
[342791163,1732140811000,-2720.22,0.00058356,120]
[342791164,1732140811011,-1040.43,0.00058356,120]
[342791165,1732140811020,-679.38,0.00058356,120]
[342791166,1732140811030,-1140.69,0.00058356,120]
[342791167,1732140811040,-579.85,0.00058356,120]
[342791168,1732140811050,-1233.54,0.00058356,120]
[342791169,1732140811060,-560.33,0.00058356,120]
[342791170,1732140811069,-1241.7,0.00058356,120]
[342791171,1732140811079,-673.6,0.00058356,120]
[342791172,1732140811090,-1595.79,0.00058356,120]
[342791173,1732140811099,-500.0,0.00058356,120]
[342791174,1732140811110,-690.2,0.00058356,120]
[342791175,1732140811120,-614.35,0.00058356,120]
[342791176,1732140811130,-1420.27,0.00058356,120]
[342791177,1732140811139,-500.0,0.00058356,120]
[342791178,1732140811149,-500.0,0.00058356,120]
[342791179,1732140811159,-500.0,0.00058356,120]
[342791180,1732140811169,-500.0,0.00058356,120]
[342791181,1732140811181,-500.0,0.00058356,120]
[342791182,1732140811191,-349.30754685,0.00058356,120]
[342791183,1732140811201,-1747.91,0.00058356,120]
[342791184,1732140811212,-1026.85,0.00058356,120]
[342791185,1732140811222,-500.0,0.00058356,120]
[342791186,1732140811232,-500.0,0.00058356,120]
[342791187,1732140811246,-1208.59,0.00058356,120]
[342791188,1732140811256,-813.38,0.00058356,120]
[342791189,1732140811266,-1929.2,0.00058356,120]
[342791190,1732140811276,-509.94,0.00058356,120]
[342791191,1732140811286,-547.23,0.00058356,120]
[342791192,1732140811297,-983.72,0.00058356,120]
[342791193,1732140811307,-1133.87,0.00058356,120]
[342791194,1732140811317,-2243.95,0.00058356,120]
[342791195,1732140811327,-500.0,0.00058356,120]
[342791196,1732140811337,-837.29,0.00058356,120]
[342791197,1732140811346,-588.38320212,0.00058356,120]
[342791198,1732140811356,-601.65,0.00058356,120]
[342791199,1732140811366,-500.0,0.00058356,120]
[342791200,1732140811376,-500.0,0.00058356,120]
[342791201,1732140811386,-500.0,0.00058356,120]
[342791202,1732140811395,-1244.02,0.00058356,120]
[342791203,1732140811404,-500.0,0.00058356,120]
[342791204,1732140811415,-500.0,0.00058356,120]
[342791205,1732140811425,-581.48,0.00058356,120]
[342791206,1732140811434,-912.77,0.00058356,120]
[342791207,1732140811444,-822.59,0.00058356,120]
[342791208,1732140811454,-1640.54,0.00058356,120]
[342791209,1732140811465,-500.0,0.00058356,120]
[342791210,1732140811474,-957.41,0.00058356,120]
[342791211,1732140811485,-3305.34,0.00058356,120]
[342791212,1732140811497,-546.92,0.00058356,120]
[342791213,1732140811506,-500.0,0.00058356,120]
[342791214,1732140811516,-1590.28,0.00058356,120]
[342791215,1732140811527,-4503.54,0.00058356,120]
[342791216,1732140811537,-2459.56,0.00058356,120]
[342791217,1732140811547,-5054.97,0.00058356,120]
[342791218,1732140811558,-500.0,0.00058356,120]
[342791219,1732140811568,-500.0,0.00058356,120]
[342791220,1732140811577,-500.0,0.00058356,120]
[342791221,1732140811587,-1237.62,0.00058356,120]
[342791222,1732140811598,-1805.81,0.00058356,120]
[342791223,1732140811608,-1705.69,0.00058356,120]
[342791224,1732140811618,-730.02,0.00058356,120]
[342791225,1732140811628,-556.28,0.00058356,120]
[342791226,1732140811638,-1293.03,0.00058356,120]
[342791227,1732140811648,-735.83,0.00058356,120]
[342791228,1732140811658,-875.45,0.00058356,120]
[342791229,1732140811668,-2355.16,0.00058356,120]
[342791230,1732140811679,-529.9,0.00058356,120]
[342791231,1732140811689,-1626.59,0.00058356,120]
[342791232,1732140811700,-1065.14,0.00058356,120]
[342791233,1732140811710,-500.0,0.00058356,120]
[342791234,1732140811720,-1000.0,0.00058356,30]
[342791235,1732140811730,-899.71,0.00058356,120]
[342791236,1732140811744,-1031.07,0.00058356,120]
[342791237,1732140811759,-2139.66,0.00058356,120]
[342791238,1732140811768,-1746.7,0.00058356,120]
[342791239,1732140811778,-500.0,0.00058356,120]
[342791240,1732140811787,-500.0,0.00058356,120]
[342791241,1732140811797,-525.57,0.00058356,120]
[342791242,1732140811806,-500.0,0.00058356,120]
[342791243,1732140811816,-1007.82,0.00058356,120]
[342791244,1732140811825,-525.94,0.00058356,120]
[342791245,1732140811835,-500.0,0.00058356,120]
[342791246,1732140811844,-800.11,0.00058356,120]
[342791247,1732140811854,-3332.16,0.00058356,120]
[342791248,1732140811864,-2450.69,0.00058356,120]
[342791249,1732140811874,-1123.27,0.00058356,120]
[342791250,1732140811884,-1393.96,0.00058356,120]
[342791251,1732140811894,-967.57,0.00058356,120]
[342791252,1732140811903,-500.0,0.00058356,120]
[342791253,1732140811913,-1357.65,0.00058356,120]
[342791254,1732140811922,-516.13487515,0.00058356,120]
[342791255,1732140811932,-1642.87,0.00058356,120]
[342791256,1732140811944,-500.0,0.00058356,120]
[342791257,1732140811955,-1588.79,0.00058356,90]
[342791258,1732140811965,-500.0,0.00058356,120]
[342791259,1732140811975,-1853.26,0.00058356,120]
[342791260,1732140811986,-1717.17,0.00058356,120]
[342791261,1732140811997,-500.0,0.00058356,120]
[342791262,1732140812008,-700.0,0.00058356,120]
[342791263,1732140812018,-2546.22,0.00058356,120]
[342791264,1732140812028,-2834.37,0.00058356,120]
[342791265,1732140812037,-1334.03,0.00058356,120]
[342791266,1732140812047,-500.0,0.00058356,120]
[342791267,1732140812058,-500.0,0.00058356,120]
[342791268,1732140812069,-2885.23,0.00058356,120]
[342791269,1732140812080,-4453.81,0.00058356,120]
[342791270,1732140812090,-2241.05,0.00058356,120]
[342791271,1732140812100,-2217.98,0.00058356,120]
[342791272,1732140812110,-500.0,0.00058356,120]
[342791273,1732140812120,-1402.45,0.00058356,60]
[342791274,1732140812131,-800.61,0.00058356,120]
[342791275,1732140812140,-500.0,0.00058356,120]
[342791276,1732140812151,-932.27,0.00058356,120]
[342791277,1732140812161,-1004.07,0.00058356,120]
[342791278,1732140812172,-380.54058996,0.00058356,120]
[342791279,1732140812184,-2000.63,0.00058356,120]
[342791280,1732140812194,-703.55,0.00058356,120]
[342791281,1732140812204,-2241.76,0.00058356,120]
[342791282,1732140812216,-1132.68,0.00058356,120]
[342791283,1732140812226,-596.11,0.00058356,120]
[342791284,1732140812236,-794.52,0.00058356,120]
[342791285,1732140812250,-833.99,0.00058356,120]
[342791286,1732140812259,-2777.12,0.00058356,120]
[342791287,1732140812269,-1558.24,0.00058356,120]
[342791288,1732140812279,-1309.21,0.00058356,120]
[342791289,1732140812289,-500.0,0.00058356,120]
[342791290,1732140812299,-500.0,0.00058356,120]
[342791291,1732140812309,-500.08,0.00058356,120]
[342791292,1732140812319,-2539.87,0.00058356,120]
[342791293,1732140812329,-500.0,0.00058356,120]
[342791294,1732140812340,-500.0,0.00058356,120]
[342791295,1732140812350,-831.36,0.00058356,120]
[342791296,1732140812360,-1743.89,0.00058356,120]
[342791297,1732140812369,-500.0,0.00058356,120]
[342791298,1732140812381,-408.72537786,0.00058356,120]
[342791299,1732140812392,-500.0,0.00058356,120]
[342791300,1732140812402,-1229.75,0.00058356,120]
[342791301,1732140812412,-1365.28,0.00058356,120]
[342791302,1732140812422,-1290.22,0.00058356,120]
[342791303,1732140812432,-507.82,0.00058356,120]
[342791304,1732140812443,-3045.72,0.00058356,120]
[342791305,1732140812452,-916.6,0.00058356,120]
[342791306,1732140812462,-500.0,0.00058356,120]
[342791307,1732140812472,-500.0,0.00058356,120]
[342791308,1732140812483,-610.75,0.00058356,120]
[342791309,1732140812495,-500.0,0.00058356,120]
[342791310,1732140812505,-502.86,0.00058356,120]
[342791311,1732140812515,-504.52,0.00058356,120]
[342791312,1732140812525,-1278.95,0.00058356,120]
[342791313,1732140812536,-702.18,0.00058356,120]
[342791314,1732140812546,-500.0,0.00058356,120]
[342791315,1732140812556,-3583.6,0.00058356,120]
[342791316,1732140812567,-1685.95,0.00058356,120]
[342791317,1732140812577,-5689.68,0.00058356,120]
[342791318,1732140812587,-1343.23,0.00058356,120]
[342791319,1732140812598,-500.0,0.00058356,120]
[342791320,1732140812608,-553.27,0.00058356,120]
[342791321,1732140812618,-500.0,0.00058356,120]
[342791322,1732140812630,-1250.26,0.00058356,120]
[342791323,1732140812640,-982.33,0.00058356,120]
[342791324,1732140812650,-500.0,0.00058356,120]
[342791325,1732140812660,-667.62,0.00058356,120]
[342791326,1732140812671,-500.0,0.00058356,120]
[342791327,1732140812681,-500.0,0.00058356,120]
[342791328,1732140812691,-609.95,0.00058356,120]
[342791329,1732140812702,-500.0,0.00058356,120]
[342791330,1732140812713,-500.0,0.00058356,120]
[342791331,1732140812724,-808.05,0.00058356,120]
[342791332,1732140812735,-522.08,0.00058356,120]
[342791333,1732140812746,-1111.01,0.00058356,120]
[342791334,1732140812756,-671.78,0.00058356,120]
[342791335,1732140812766,-500.0,0.00058356,120]
[342791336,1732140812777,-1704.12,0.00058356,120]
[342791337,1732140812788,-2102.13,0.00058356,120]
[342791338,1732140812799,-500.0,0.00058356,120]
[342791339,1732140812809,-907.83,0.00058356,120]
[342791340,1732140812819,-500.0,0.00058356,120]
[342791341,1732140812830,-1034.91,0.00058356,120]
[342791342,1732140812840,-500.0,0.00058356,120]
[342791343,1732140812850,-5007.0,0.00058356,120]
[342791344,1732140812860,-675.74,0.00058356,120]
[342791345,1732140812870,-2296.76,0.00058356,20]
[342791346,1732140812882,-500.0,0.00058356,120]
[342791347,1732140812892,-500.0,0.00058356,120]
[342791348,1732140812903,-500.0,0.00058356,120]
[342791349,1732140812913,-798.21,0.00058356,120]
[342791350,1732140812923,-647.62,0.00058356,120]
[342791351,1732140812934,-500.0,0.00058356,120]
[342791352,1732140812943,-2489.82,0.00058356,120]
[342791353,1732140812954,-2045.61,0.00058356,120]
[342791354,1732140812964,-167.4368952,0.00058356,120]
[342791355,1732140812974,-185.66831916,0.00058356,120]
[342791356,1732140812984,-500.0,0.00058356,120]
[342791357,1732140812995,-1208.94,0.00058356,120]
[342791358,1732140813005,-500.0,0.00058356,120]
[342791359,1732140813015,-721.64,0.00058356,120]
[342791360,1732140813026,-972.27,0.00058356,120]
[342791361,1732140813037,-1591.78,0.00058356,120]
[342791362,1732140813048,-1887.72,0.00058356,120]
[342791363,1732140813059,-500.0,0.00058356,120]
[342791364,1732140813071,-850.0,0.00058356,120]
[342791365,1732140813081,-852.01,0.00058356,120]
[342791366,1732140813092,-872.84,0.00058356,120]
[342791367,1732140813102,-500.0,0.00058356,120]
[342791368,1732140813113,-283.70076874,0.00058356,120]
[342791369,1732140813123,-500.0,0.00058356,120]
[342791370,1732140813134,-846.36,0.00058356,120]
[342791371,1732140813144,-865.82,0.00058356,120]
[342791372,1732140813154,-1191.88,0.00058356,120]
[342791373,1732140813165,-5749.44,0.00058356,120]
[342791374,1732140813180,-500.0,0.00058356,120]
[342791375,1732140813190,-500.0,0.00058356,120]
[342791376,1732140813202,-500.0,0.00058356,120]
[342791377,1732140813213,-706.66,0.00058356,120]
[342791378,1732140813224,-1792.7,0.00058356,120]
[342791379,1732140813234,-669.11,0.00058356,120]
[342791380,1732140813553,-571.98,0.00058356,120]
[342791381,1732140813568,-247.28111133,0.00058356,120]
[342791382,1732140813578,-688.41,0.00058356,120]
[342791383,1732140813588,-710.75,0.00058356,120]
[342791384,1732140813599,-2203.93,0.00058356,120]
[342791385,1732140813609,-600.76,0.00058356,120]
[342791386,1732140813619,-1092.67,0.00058356,120]
[342791387,1732140813629,-723.74,0.00058356,120]
[342791388,1732140813640,-962.75,0.00058356,120]
[342791389,1732140813651,-988.55,0.00058356,120]
[342791390,1732140813662,-690.54,0.00058356,120]
[342791391,1732140813673,-2304.78,0.00058356,120]
[342791392,1732140813683,-500.0,0.00058356,120]
[342791393,1732140813693,-500.0,0.00058356,120]
[342791394,1732140813702,-843.9,0.00058356,120]
[342791395,1732140813712,-500.0,0.00058356,120]
[342791396,1732140813721,-1647.87,0.00058356,120]
[342791397,1732140813732,-850.55,0.00058356,120]
[342791398,1732140813743,-809.67,0.00058356,120]
[342791399,1732140813754,-683.97,0.00058356,120]
[342791400,1732140813764,-834.1,0.00058356,120]
[342791401,1732140813774,-914.77,0.00058356,120]
[342791402,1732140813783,-1141.14,0.00058356,120]
[342791403,1732140813794,-500.0,0.00058356,120]
[342791404,1732140813804,-500.0,0.00058356,120]
[342791405,1732140813814,-624.59,0.00058356,120]
[342791406,1732140813824,-1109.8,0.00058356,120]
[342791407,1732140813834,-500.0,0.00058356,120]
[342791408,1732140813844,-1752.52,0.00058356,120]
[342791409,1732140813854,-1096.46,0.00058356,120]
[342791410,1732140813863,-500.0,0.00058356,120]
[342791411,1732140813873,-950.07,0.00058356,120]
[342791412,1732140813883,-1422.3,0.00058356,120]
[342791413,1732140813893,-2142.92,0.00058356,120]
[342791414,1732140813903,-829.0,0.00058356,120]
[342791415,1732140813913,-500.0,0.00058356,120]